bitfinex/quotes_BTCUSD_20241229
["timestamp","ask_amount","ask_price","bid_price","bid_amount"]
[1735467843603,2.85306864,95324.0,95323.0,0.0080855]
[1735467844501,2.829334,95324.0,95323.0,0.0080855]
[1735467846618,2.86951903,95324.0,95323.0,0.0080855]
[1735467847142,2.84579452,95324.0,95323.0,0.0080855]
[1735467848279,3.12906783,95324.0,95323.0,0.0080855]
[1735467849230,2.84579452,95324.0,95323.0,0.0080855]
[1735467851232,0.01763152,95324.0,95323.0,0.0080855]
[1735467851438,2.84579452,95324.0,95323.0,0.0080855]
[1735467852480,1.14163152,95324.0,95323.0,0.0080855]
[1735467852914,1.16535603,95324.0,95323.0,0.0080855]
[1735467853319,1.14163152,95324.0,95323.0,0.00440191]
[1735467853747,1.125171,95324.0,95323.0,0.00440191]
[1735467855355,1.36127273,95324.0,95323.0,0.00440191]
[1735467856314,1.125171,95324.0,95323.0,0.00440191]
[1735467856893,1.1416311,95324.0,95323.0,0.00440191]
[1735467862945,1.1416311,95324.0,95323.0,0.00166732]
[1735467863451,1.125171,95324.0,95323.0,0.00166732]
[1735467868234,1.14163169,95324.0,95323.0,0.00166732]
[1735467872484,0.01763169,95324.0,95323.0,0.00166732]
[1735467872778,2.84579469,95324.0,95323.0,0.00166732]
[1735467873612,2.799334,95324.0,95323.0,0.00166732]
[1735467876593,3.05192731,95324.0,95323.0,0.00166732]
[1735467877108,2.68359331,95324.0,95323.0,0.00166732]
[1735467877292,2.50159331,95324.0,95323.0,0.00166732]
[1735467878430,2.26563143,95324.0,95323.0,0.00166732]
[1735467881038,0.56163143,95324.0,95323.0,0.08056732]
[1735467881232,0.56163143,95324.0,95323.0,0.09346821]
[1735467881655,0.56163143,95324.0,95323.0,0.08056732]
[1735467882378,0.56163143,95324.0,95323.0,0.00166732]
[1735467883390,0.79788544,95324.0,95323.0,0.00166732]
[1735467883528,0.78142501,95324.0,95323.0,0.00166732]
[1735467884525,0.545171,95324.0,95323.0,0.00166732]
[1735467886495,0.56163136,95324.0,95323.0,0.00166732]
[1735467888619,0.54763136,95324.0,95323.0,0.00166732]
[1735467889638,0.52163136,95324.0,95323.0,0.00166732]
[1735467891904,0.52063075,95324.0,95323.0,0.00166732]
[1735467893431,0.505,95324.0,95323.0,0.00166732]
[1735467896657,0.52146032,95324.0,95323.0,0.00166732]
[1735467899546,0.01646032,95324.0,95323.0,0.00166732]
[1735467900200,1.86446032,95324.0,95323.0,0.00166732]
[1735467900318,1.25163132,95324.0,95323.0,0.00986311]
[1735467900518,1.25163132,95324.0,95323.0,0.00166732]
[1735467903561,1.235171,95324.0,95323.0,0.00166732]
[1735467903980,1.235171,95324.0,95323.0,8.55e-05]
[1735467904334,1.235171,95324.0,95323.0,0.0030855]
[1735467904751,1.236171,95324.0,95323.0,0.0060855]
[1735467904955,1.235171,95324.0,95323.0,8.55e-05]
[1735467905398,1.236171,95324.0,95323.0,0.0030855]
[1735467906324,1.236171,95324.0,95323.0,0.0060855]
[1735467906786,1.25263119,95324.0,95323.0,0.0060855]
[1735467906988,1.25163119,95324.0,95323.0,0.0030855]
[1735467907195,1.25163119,95324.0,95323.0,0.0050855]
[1735467907452,1.25163119,95324.0,95323.0,0.0030855]
[1735467907802,1.25163119,95324.0,95323.0,0.0080855]
[1735467908003,1.48797029,95324.0,95323.0,0.0080855]
[1735467909668,1.25163119,95324.0,95323.0,0.0080855]
[1735467913409,1.235171,95324.0,95323.0,0.0080855]
[1735467913815,1.235171,95324.0,95323.0,0.0050855]
[1735467914017,1.235171,95324.0,95323.0,0.0010855]
[1735467914416,0.000171,95324.0,95323.0,0.09152311]
[1735467914621,0.000171,95324.0,95323.0,0.0833855]
[1735467915063,0.23652175,95324.0,95323.0,0.0833855]
[1735467916292,0.000171,95324.0,95323.0,0.0833855]
[1735467916815,0.01663083,95324.0,95323.0,0.0833855]
[1735467923504,0.000171,95324.0,95323.0,0.0833855]
[1735467924476,0.000171,95324.0,95323.0,0.0040855]
[1735467926847,0.0166309,95324.0,95323.0,0.0040855]
[1735467933597,0.000171,95324.0,95323.0,0.0040855]
[1735467933793,0.000171,95324.0,95323.0,0.0810855]
[1735467933973,0.000171,95324.0,95323.0,0.0893331]
[1735467935605,0.000171,95324.0,95323.0,0.0810855]
[1735467937388,0.000171,95324.0,95323.0,0.08213433]
[1735467938239,0.01663071,95324.0,95323.0,0.08213433]
[1735467938438,0.01663071,95324.0,95323.0,0.0810855]
[1735467943570,0.000171,95324.0,95323.0,0.0810855]
[1735467945997,0.0118254,95331.0,95323.0,0.08933309]
[1735467946162,1.52,95330.0,95324.0,0.00104894]
[1735467946353,1.52,95330.0,95323.0,0.08933309]
[1735467946557,0.0048497,95329.0,95323.0,0.08933309]
[1735467946772,1.338,95328.0,95323.0,0.08833309]
[1735467947161,0.00092352,95327.0,95323.0,0.08533309]
[1735467947546,0.00185015,95327.0,95323.0,0.08633309]
[1735467947748,0.20561373,95329.0,95323.0,0.08633309]
[1735467947993,0.00461533,95326.0,95323.0,0.08733309]
[1735467948250,0.20561373,95329.0,95323.0,0.08733309]
[1735467948393,0.00185015,95325.0,95323.0,0.08633309]
[1735467948614,1.375,95328.0,95323.0,0.08633309]
[1735467948615,0.20561373,95329.0,95323.0,0.08633309]
[1735467948793,0.00185015,95324.0,95323.0,0.08733309]
[1735467948991,0.00276739,95324.0,95323.0,0.08733309]
[1735467949212,0.00184795,95324.0,95323.0,0.08733309]
[1735467949431,0.20561373,95329.0,95323.0,0.0810855]
[1735467949596,1.21776518,95328.0,95323.0,0.0780855]
[1735467949795,1.199,95327.0,95323.0,0.0780855]
[1735467950002,1.147,95327.0,95323.0,0.0810855]
[1735467950180,0.00276518,95326.0,95323.0,0.0780855]
[1735467950386,0.00461533,95326.0,95324.0,0.0079476]
[1735467951846,0.00461533,95326.0,95323.0,0.0800855]
[1735467952630,0.00461533,95326.0,95323.0,0.0770855]
[1735467952893,0.00461533,95326.0,95324.0,0.003]
[1735467953112,0.00461533,95326.0,95324.0,0.004]
[1735467953310,0.00461533,95326.0,95324.0,0.001]
[1735467953829,0.00461533,95326.0,95323.0,0.0770855]
[1735467953963,0.00461533,95326.0,95323.0,0.0780855]
[1735467954311,0.00461533,95326.0,95324.0,0.003]
[1735467954714,0.00461533,95326.0,95324.0,0.004]
[1735467955586,0.00461533,95326.0,95324.0,0.001]
[1735467956509,0.00461533,95326.0,95324.0,0.004]
[1735467956941,0.02107514,95326.0,95324.0,0.004]
[1735467957277,0.25751762,95326.0,95324.0,0.004]
[1735467958209,0.23644248,95325.0,95324.0,0.004]
[1735467958624,0.238291,95325.0,95324.0,0.004]
[1735467959009,0.238291,95325.0,95324.0,0.003]
[1735467959207,0.238291,95325.0,95323.0,0.0770855]
[1735467959420,0.238291,95325.0,95324.0,0.001]
[1735467959619,0.238291,95325.0,95324.0,0.004]
[1735467960111,0.238291,95325.0,95324.0,0.003]
[1735467961458,0.238291,95325.0,95324.0,0.01104271]
[1735467962312,0.238291,95325.0,95324.0,0.003]
[1735467962825,0.238291,95325.0,95324.0,0.004]
[1735467963244,0.24105839,95325.0,95324.0,0.004]
[1735467966631,0.25751825,95325.0,95324.0,0.004]
[1735467969255,0.25751825,95325.0,95324.0,0.0040854]
[1735467970235,0.02107577,95325.0,95324.0,0.0040854]
[1735467970939,0.02107577,95325.0,95324.0,0.01223665]
[1735467973409,0.00461591,95325.0,95324.0,0.0040854]
[1735467974083,0.19380011,95325.0,95324.0,0.0040854]
[1735467975241,0.00461591,95325.0,95324.0,0.0040854]
[1735467976636,0.02107579,95325.0,95324.0,0.0040854]
[1735467978548,0.02107579,95325.0,95324.0,0.0030854]
[1735467978832,0.02107579,95325.0,95324.0,0.0040854]
[1735467979043,0.02107579,95325.0,95324.0,0.0010854]
[1735467979338,0.16293811,95325.0,95324.0,8.54e-05]
[1735467979699,0.16293811,95325.0,95324.0,0.0030854]
[1735467979899,0.16393811,95325.0,95324.0,0.0110854]
[1735467980055,0.21125999,95325.0,95324.0,0.0080854]
[1735467980437,0.21125999,95325.0,95324.0,0.0100854]
[1735467981012,0.02107579,95325.0,95324.0,0.0020854]
[1735467981664,0.02107579,95325.0,95324.0,0.0060854]
[1735467983318,0.00326152,95327.0,95324.0,0.0060854]
[1735467983523,0.00326152,95327.0,95324.0,0.01443665]
[1735467983718,0.01645988,95325.0,95324.0,0.01443665]
[1735467983924,0.00326152,95327.0,95324.0,0.0060854]
[1735467984351,0.23647288,95337.0,95324.0,0.0020854]
[1735467984548,1.77904447,95336.0,95324.0,0.0060854]
[1735467984725,1.584,95335.0,95324.0,0.0060854]
[1735467984925,0.00104447,95334.0,95324.0,0.0040854]
[1735467985276,0.358,95333.0,95324.0,0.0040854]
[1735467985433,0.358,95333.0,95324.0,8.54e-05]
[1735467985434,0.208,95333.0,95324.0,8.54e-05]
[1735467985636,2.799334,95338.0,95324.0,0.0020854]
[1735467985921,0.00104447,95337.0,95324.0,0.01003665]
[1735467986068,2.027,95336.0,95324.0,0.00803665]
[1735467986275,1.60004447,95335.0,95324.0,0.00803665]
[1735467986471,1.354,95334.0,95324.0,0.00803665]
[1735467986651,1.296,95334.0,95324.0,0.00803665]
[1735467986836,0.01645967,95333.0,95324.0,8.54e-05]
[1735467987241,0.583,95332.0,95324.0,0.0010854]
[1735467988148,0.583,95332.0,95324.0,8.54e-05]
[1735467988346,0.583,95332.0,95324.0,0.0010854]
[1735467988550,0.419,95332.0,95324.0,0.0010854]
[1735467988753,1.387,95332.0,95324.0,0.0010854]
[1735467989543,1.113,95332.0,95324.0,0.0020854]
[1735467989745,0.01645967,95333.0,95324.0,0.0020854]
[1735467989945,1.389,95332.0,95324.0,0.0020854]
[1735467990460,1.249,95332.0,95324.0,0.0020854]
[1735467990603,1.389,95332.0,95324.0,0.0010854]
[1735467990805,1.28,95332.0,95324.0,0.0010854]
[1735467991028,1.28,95332.0,95324.0,0.0020854]
[1735467991259,1.28,95332.0,95324.0,0.0010854]
[1735467991482,1.28,95332.0,95324.0,8.54e-05]
[1735467991689,1.28,95332.0,95324.0,0.0010854]
[1735467992375,1.28,95332.0,95324.0,0.0020854]
[1735467992823,0.01645967,95333.0,95324.0,0.0020854]
[1735467993022,1.054,95332.0,95324.0,0.0020854]
[1735467993555,1.024,95332.0,95324.0,0.0020854]
[1735467994426,0.1891119,95328.0,95324.0,0.0020854]
[1735467994922,0.1891119,95328.0,95324.0,0.0010854]
[1735467995275,0.1891119,95329.0,95324.0,8.54e-05]
[1735467995688,0.1891119,95329.0,95324.0,0.0030854]
[1735467996000,0.1891119,95329.0,95324.0,0.0040854]
[1735467996350,0.1891119,95329.0,95324.0,0.0030854]
[1735467996655,0.1891119,95328.0,95324.0,0.0040854]
[1735467996821,0.1891119,95328.0,95324.0,0.0010854]
[1735467997250,0.1891119,95328.0,95324.0,0.0040854]
[1735467997828,0.1891119,95328.0,95324.0,8.54e-05]
[1735467998236,0.20557164,95328.0,95324.0,0.0040854]
[1735467998870,0.1891119,95327.0,95324.0,0.0040854]
[1735467999748,0.1891119,95327.0,95324.0,0.0030854]
[1735468000148,0.1891119,95327.0,95324.0,8.54e-05]
[1735468000373,0.1891119,95327.0,95324.0,0.0040854]
[1735468000957,0.1891119,95327.0,95324.0,0.0060854]
[1735468001994,0.20557164,95328.0,95324.0,0.0060854]
[1735468002959,0.20557164,95328.0,95324.0,0.0040854]
[1735468003153,0.20557164,95328.0,95324.0,8.54e-05]
[1735468003435,0.1891119,95328.0,95324.0,0.0030854]
[1735468003659,0.1891119,95330.0,95324.0,0.0030854]
[1735468004238,0.1891119,95330.0,95324.0,0.0040854]
[1735468004805,0.1891119,95330.0,95324.0,8.54e-05]
[1735468004983,0.1891119,95330.0,95324.0,0.0020854]
[1735468005209,0.1891119,95330.0,95324.0,0.0030854]
[1735468006652,0.1891119,95328.0,95324.0,0.0030854]
[1735468007383,0.1891119,95327.0,95324.0,0.0030854]
[1735468007612,0.1891119,95327.0,95324.0,0.0020854]
[1735468007940,0.1891119,95327.0,95324.0,0.0010854]
[1735468008154,0.1891119,95327.0,95324.0,0.0040854]
[1735468008406,0.1891119,95327.0,95324.0,8.54e-05]
[1735468008626,0.20557164,95329.0,95324.0,0.0020854]
[1735468008803,0.20557164,95329.0,95324.0,0.0060854]
[1735468009795,0.1891119,95328.0,95324.0,0.0060854]
[1735468009970,0.1891119,95328.0,95324.0,0.0020854]
[1735468010169,0.1891119,95328.0,95324.0,8.54e-05]
[1735468010325,0.1891119,95328.0,95324.0,0.0030854]
[1735468010530,0.1891119,95328.0,95324.0,0.0040854]
[1735468010730,0.01645974,95329.0,95324.0,0.0040854]
[1735468010731,0.20557164,95329.0,95324.0,0.0040854]
[1735468011163,0.20557164,95329.0,95324.0,8.54e-05]
[1735468011367,0.20557164,95329.0,95324.0,0.0040854]
[1735468011641,0.20557164,95329.0,95324.0,0.0010854]
[1735468011844,0.20557164,95329.0,95324.0,8.54e-05]
[1735468012002,0.20557164,95329.0,95324.0,0.0030854]
[1735468012210,0.20557164,95329.0,95324.0,0.0040854]
[1735468013602,0.1891119,95329.0,95324.0,0.0040854]
[1735468014083,0.1891119,95329.0,95324.0,0.00046324]
[1735468014960,0.1891119,95330.0,95324.0,0.00046324]
[1735468015879,0.1891119,95329.0,95324.0,0.00046324]
[1735468016100,0.1891119,95329.0,95324.0,0.00054864]
[1735468016539,0.1891119,95328.0,95324.0,0.00054864]
[1735468016704,0.20557166,95328.0,95324.0,0.00054864]
[1735468016912,0.20557166,95328.0,95324.0,8.54e-05]
[1735468017059,0.20557166,95328.0,95324.0,0.0010854]
[1735468017528,0.20557166,95328.0,95324.0,0.0020854]
[1735468017762,0.20557166,95328.0,95324.0,0.0010854]
[1735468017985,0.20557166,95328.0,95324.0,0.0040854]
[1735468023820,0.1891119,95328.0,95324.0,0.00136271]
[1735468026298,0.1891119,95327.0,95324.0,0.00136271]
[1735468027010,0.20557177,95327.0,95324.0,0.00136271]
[1735468027294,0.20557177,95327.0,95323.0,0.0770855]
[1735468027464,0.01645987,95327.0,95323.0,0.0770855]
[1735468027691,0.01645987,95327.0,95324.0,0.004]
[1735468028359,0.01645987,95327.0,95324.0,0.0010854]
[1735468029075,0.01645987,95327.0,95324.0,8.54e-05]
[1735468030345,0.01645987,95327.0,95324.0,0.0030854]
[1735468030686,0.01645987,95327.0,95324.0,0.0040854]
[1735468032239,0.01645987,95327.0,95324.0,0.0490854]
[1735468033648,0.0001708,95328.0,95324.0,0.0490854]
[1735468034596,0.0001708,95328.0,95324.0,0.0460854]
[1735468035051,0.0001708,95328.0,95324.0,0.0490854]
[1735468035804,0.0001708,95328.0,95324.0,0.0480854]
[1735468036023,0.0001708,95328.0,95324.0,0.0490854]
[1735468036819,0.01663057,95328.0,95324.0,0.0490854]
[1735468037062,0.01663057,95328.0,95325.0,0.0787]
[1735468038476,0.01663057,95328.0,95325.0,0.0817]
[1735468039051,0.01663057,95328.0,95325.0,0.0827]
[1735468043655,0.0001708,95328.0,95325.0,0.0827]
[1735468044824,0.0001708,95328.0,95325.0,0.10562613]
[1735468045360,0.0001708,95328.0,95325.0,0.0827]
[1735468046767,0.01663047,95328.0,95325.0,0.0827]
[1735468053620,0.0001708,95328.0,95325.0,0.0827]
[1735468056613,0.01663052,95328.0,95325.0,0.0827]
[1735468056808,0.20574242,95328.0,95325.0,0.0827]
[1735468057639,0.01663052,95328.0,95325.0,0.0827]
[1735468061740,0.01663052,95328.0,95325.0,0.0817]
[1735468062155,0.01663052,95328.0,95325.0,0.0827]
[1735468062807,0.01663052,95328.0,95325.0,0.0797]
[1735468063139,0.01663052,95328.0,95325.0,0.0817]
[1735468063372,0.01663052,95328.0,95325.0,0.0787]
[1735468063642,0.2014065,95333.0,95325.0,0.0817]
[1735468063864,0.2014065,95333.0,95325.0,0.11022613]
[1735468064497,0.2014065,95333.0,95325.0,0.10122613]
[1735468064819,0.2014065,95333.0,95325.0,0.10622613]
[1735468065346,0.00104447,95341.0,95325.0,0.10622613]
[1735468065347,0.0001708,95328.0,95325.0,0.0837]
[1735468065571,0.0001708,95328.0,95325.0,0.005]
[1735468066384,2.799334,95327.0,95325.0,0.003]
[1735468066638,2.799334,95327.0,95325.0,0.001]
[1735468066847,2.799244,95326.0,95325.0,0.001]
[1735468067051,0.219,95326.0,95325.0,0.003]
[1735468067440,0.219,95326.0,95324.0,8.54e-05]
[1735468067593,0.01646031,95327.0,95325.0,0.001]
[1735468067804,0.485,95326.0,95325.0,0.001]
[1735468068014,0.485,95326.0,95324.0,8.54e-05]
[1735468068220,0.263,95326.0,95325.0,0.003]
[1735468068447,0.263,95326.0,95325.0,0.004]
[1735468068604,0.235,95326.0,95325.0,0.004]
[1735468068810,0.01646031,95327.0,95325.0,0.004]
[1735468069461,0.01646031,95327.0,95325.0,0.001]
[1735468070135,0.01646031,95327.0,95324.0,8.54e-05]
[1735468070332,0.01646031,95327.0,95324.0,0.0010854]
[1735468070674,0.01646031,95327.0,95325.0,0.003]
[1735468071232,0.01646031,95327.0,95325.0,0.001]
[1735468073131,0.01646031,95327.0,95325.0,0.004]
[1735468073549,0.0001708,95328.0,95325.0,0.004]
[1735468074429,0.0001708,95328.0,95324.0,8.54e-05]
[1735468074632,0.0001708,95328.0,95325.0,0.001]
[1735468075154,0.0001708,95328.0,95326.0,0.00803125]
[1735468075659,0.0001708,95328.0,95325.0,0.001]
[1735468076374,0.0001708,95328.0,95324.0,8.54e-05]
[1735468076677,0.0001708,95328.0,95325.0,0.0020854]
[1735468076879,0.01663066,95328.0,95325.0,0.0020854]
[1735468077408,0.01663066,95328.0,95325.0,0.0010854]
[1735468079603,0.2058974,95328.0,95325.0,0.0010854]
[1735468079869,0.2058974,95328.0,95325.0,0.0030854]
[1735468082885,0.01663066,95328.0,95325.0,0.0030854]
[1735468083436,0.0001708,95328.0,95325.0,0.0030854]
[1735468086026,0.0001708,95328.0,95317.0,0.07394519]
[1735468086228,0.0001708,95328.0,95317.0,0.07401441]
[1735468087596,0.0001708,95328.0,95317.0,0.07501441]
[1735468087798,0.0001708,95328.0,95317.0,0.07701441]
[1735468088249,0.01645986,95326.0,95317.0,0.07701441]
[1735468088455,0.01645986,95326.0,95325.0,8.54e-05]
[1735468089700,0.01645986,95326.0,95325.0,0.0030854]
[1735468090607,0.01645986,95326.0,95325.0,0.0040854]
[1735468093437,0.18943754,95328.0,95325.0,0.0040854]
[1735468093839,2.799244,95327.0,95325.0,0.0040854]
[1735468094289,2.799244,95327.0,95325.0,0.0030854]
[1735468095151,2.799244,95327.0,95325.0,0.0040854]
[1735468095454,2.98851074,95327.0,95325.0,0.0040854]
[1735468095654,2.799244,95326.0,95325.0,0.0040854]
[1735468095864,2.799244,95326.0,95325.0,0.0010854]
[1735468096192,2.799244,95326.0,95325.0,0.0030854]
[1735468096369,2.799244,95326.0,95325.0,8.54e-05]
[1735468096742,2.799244,95326.0,95325.0,0.0040854]
[1735468097082,0.53546033,95326.0,95325.0,0.0010854]
[1735468097249,0.53546033,95326.0,95325.0,0.0030854]
[1735468097636,0.53546033,95326.0,95325.0,0.0040854]
[1735468098038,0.53546033,95326.0,95325.0,0.0030854]
[1735468098263,0.53546033,95326.0,95325.0,0.0040854]
[1735468098584,0.53546033,95326.0,95325.0,0.0010854]
[1735468098726,0.53546033,95326.0,95325.0,0.0040854]
[1735468101182,0.72471761,95326.0,95325.0,0.0040854]
[1735468101532,0.72488841,95326.0,95325.0,0.0040854]
[1735468103605,0.70842808,95326.0,95325.0,0.0040854]
[1735468103783,0.58142808,95326.0,95325.0,0.0040854]
[1735468104525,0.56742808,95326.0,95325.0,0.0040854]
[1735468105694,0.3781708,95326.0,95325.0,0.0040854]
[1735468106767,0.39463078,95326.0,95325.0,0.0040854]
[1735468106972,0.01663078,95326.0,95325.0,0.0040854]
[1735468107483,0.38963078,95326.0,95325.0,0.0040854]
[1735468107713,0.38063078,95326.0,95325.0,0.0040854]
[1735468113548,0.3641708,95326.0,95325.0,0.0040854]
[1735468115180,0.3641708,95326.0,95317.0,0.00015462]
[1735468115363,0.0001708,95326.0,95317.0,0.00015462]
[1735468116292,0.0001708,95326.0,95317.0,0.00315462]
[1735468116450,0.0001708,95326.0,95317.0,0.00415462]
[1735468118132,0.01646004,95324.0,95317.0,0.00415462]
[1735468118968,0.01646004,95324.0,95317.0,0.00315462]
[1735468119194,0.01646004,95324.0,95317.0,0.00015462]
[1735468119324,0.01646004,95324.0,95317.0,0.00415462]
[1735468120875,0.01646004,95324.0,95317.0,0.00315462]
[1735468121052,0.01646004,95324.0,95317.0,0.00415462]
[1735468121440,0.01646004,95324.0,95317.0,0.00315462]
[1735468121836,0.01646004,95324.0,95317.0,0.00415462]
[1735468123477,0.0001708,95326.0,95317.0,0.00415462]
[1735468124080,0.0001708,95326.0,95317.0,0.00115462]
[1735468124286,0.0001708,95326.0,95317.0,0.00315462]
[1735468124611,0.0001708,95326.0,95317.0,0.00115462]
[1735468125017,0.0001708,95326.0,95317.0,0.00315462]
[1735468125198,0.0001708,95326.0,95317.0,0.00215462]
[1735468125413,0.0001708,95326.0,95317.0,0.00315462]
[1735468126545,0.0001708,95326.0,95318.0,0.01306036]
[1735468127845,0.0001708,95326.0,95318.0,0.01406036]
[1735468128075,0.01646001,95325.0,95318.0,0.01606036]
[1735468128409,0.01646001,95325.0,95318.0,0.003]
[1735468128610,0.01646001,95325.0,95319.0,0.0815]
[1735468131013,0.01646001,95325.0,95319.0,0.0825]
[1735468131183,0.01646001,95325.0,95319.0,0.0855]
[1735468132598,0.01646001,95325.0,95320.0,0.0455]
[1735468133840,0.01646001,95325.0,95320.0,0.0465]
[1735468134693,0.01646001,95325.0,95320.0,0.0495]
[1735468135737,0.0001708,95326.0,95320.0,0.0495]
[1735468136705,0.0001708,95326.0,95320.0,0.0485]
[1735468136854,0.0001708,95326.0,95320.0,0.0455]
[1735468137081,0.0001708,95326.0,95320.0,0.0465]
[1735468137294,0.0001708,95326.0,95320.0,0.0485]
[1735468138778,0.01645963,95325.0,95320.0,0.0485]
[1735468139845,0.01645963,95325.0,95320.0,0.0475]
[1735468140042,0.01645963,95325.0,95320.0,0.0465]
[1735468140467,0.01645963,95325.0,95320.0,0.0495]
[1735468143543,0.18942808,95326.0,95320.0,0.0495]
[1735468144442,0.18942808,95326.0,95320.0,0.0485]
[1735468145093,0.18942808,95326.0,95320.0,0.0455]
[1735468145802,0.18942808,95326.0,95320.0,0.0465]
[1735468146383,0.18942808,95326.0,95320.0,0.0485]
[1735468146584,0.01645965,95325.0,95320.0,0.0485]
[1735468147231,0.01645965,95325.0,95320.0,0.0485854]
[1735468147433,0.01645965,95325.0,95320.0,0.0475854]
[1735468147668,0.01645965,95325.0,95320.0,0.0455854]
[1735468148126,0.01645965,95325.0,95320.0,0.0485854]
[1735468148861,0.01645965,95325.0,95320.0,0.0495854]
[1735468151522,0.20571693,95325.0,95320.0,0.0495854]
[1735468153504,0.18925728,95325.0,95320.0,0.0495854]
[1735468156748,0.01645971,95324.0,95320.0,0.0495854]
[1735468158253,0.01645971,95324.0,95320.0,0.0485854]
[1735468158552,0.01645971,95324.0,95320.0,0.0495854]
[1735468158952,0.01645971,95324.0,95320.0,0.0465854]
[1735468159112,0.01645971,95324.0,95320.0,0.0495854]
[1735468163522,0.18942808,95325.0,95320.0,0.0495854]
[1735468164764,0.18942808,95325.0,95320.0,0.0485854]
[1735468165111,0.18942808,95325.0,95320.0,0.0495854]
[1735468165417,0.18942808,95325.0,95320.0,0.0465854]
[1735468165625,0.18942808,95325.0,95320.0,0.0495854]
[1735468166738,0.01645965,95324.0,95320.0,0.0495854]
[1735468168064,0.01645965,95324.0,95320.0,0.0485854]
[1735468168490,0.01645965,95324.0,95320.0,0.0455854]
[1735468168730,0.01645965,95324.0,95320.0,0.0495854]
[1735468173466,0.18942808,95325.0,95320.0,0.0495854]
[1735468174383,0.18942808,95325.0,95320.0,0.0485854]
[1735468174811,0.18942808,95325.0,95320.0,0.0495854]
[1735468175216,0.18942808,95325.0,95320.0,0.0010854]
[1735468175644,0.18942808,95325.0,95320.0,0.0040854]
[1735468176435,0.18925728,95322.0,95320.0,0.0040854]
[1735468177237,0.18925728,95322.0,95320.0,0.0030854]
[1735468177462,0.20571695,95324.0,95320.0,0.0050854]
[1735468178626,0.20571695,95324.0,95320.0,0.0020854]
[1735468179061,0.20571695,95324.0,95320.0,0.0040854]
[1735468179261,0.20571695,95324.0,95320.0,8.54e-05]
[1735468179600,0.20571695,95324.0,95320.0,0.0030854]
[1735468180307,0.20571695,95324.0,95320.0,0.0040854]
[1735468180930,0.01645967,95324.0,95320.0,0.0040854]
[1735468181730,0.20571695,95324.0,95320.0,0.0040854]
[1735468182515,0.01645967,95324.0,95320.0,0.0040854]
[1735468183519,0.19047255,95325.0,95320.0,0.0040854]
[1735468184465,0.19047255,95325.0,95320.0,0.0030854]
[1735468184639,0.00121527,95325.0,95320.0,0.0030854]
[1735468184818,0.00121527,95325.0,95320.0,0.0010854]
[1735468185049,0.00121527,95325.0,95320.0,0.0040854]
[1735468185447,0.18925728,95324.0,95320.0,0.0040854]
[1735468186268,0.18925728,95323.0,95320.0,0.0030854]
[1735468186467,0.18925728,95323.0,95320.0,8.54e-05]
[1735468186670,0.18925728,95323.0,95320.0,0.0040854]
[1735468186872,0.2057172,95323.0,95320.0,0.0040854]
[1735468187087,0.2057172,95323.0,95321.0,0.0825]
[1735468187864,0.01645992,95323.0,95321.0,0.0825]
[1735468188788,0.01645992,95323.0,95321.0,0.0865]
[1735468189490,0.01645992,95323.0,95321.0,0.0885]
[1735468193629,0.00121527,95325.0,95321.0,0.0885]
[1735468194430,0.00121527,95325.0,95321.0,0.006]
[1735468194635,0.00121527,95325.0,95320.0,8.54e-05]
[1735468194853,2.91156969,95324.0,95321.0,0.003]
[1735468195019,2.80028847,95323.0,95321.0,0.003]
[1735468195223,2.85526063,95322.0,95321.0,0.003]
[1735468195623,2.85526063,95322.0,95320.0,8.54e-05]
[1735468195851,2.80028847,95321.0,95320.0,8.54e-05]
[1735468196049,2.82886969,95321.0,95320.0,8.54e-05]
[1735468196651,2.82886969,95321.0,95320.0,0.0010854]
[1735468196852,2.84533098,95321.0,95320.0,0.0010854]
[1735468197277,2.84533098,95321.0,95320.0,8.54e-05]
[1735468197481,2.84533098,95321.0,95320.0,0.0020854]
[1735468198058,2.81570529,95321.0,95320.0,0.0020854]
[1735468198242,2.81570529,95321.0,95320.0,0.0060854]
[1735468199158,2.81570529,95321.0,95320.0,0.0040854]
[1735468199702,2.81570529,95321.0,95320.0,0.0060854]
[1735468200060,2.81570529,95321.0,95320.0,0.0040854]
[1735468200410,2.81570529,95321.0,95320.0,0.0060854]
[1735468202997,3.05221865,95321.0,95320.0,0.0060854]
[1735468203171,2.92297465,95321.0,95320.0,0.0060854]
[1735468203373,2.55297465,95321.0,95320.0,0.0060854]
[1735468203533,2.53651336,95321.0,95320.0,0.0060854]
[1735468204329,1.93051336,95321.0,95320.0,0.0060854]
[1735468204917,1.87351336,95321.0,95320.0,0.0060854]
[1735468205124,1.537,95321.0,95320.0,0.0060854]
[1735468205318,0.838,95321.0,95320.0,0.0060854]
[1735468205555,0.23651336,95323.0,95320.0,0.0060854]
[1735468206497,0.18920135,95321.0,95320.0,0.0040854]
[1735468206908,0.205662,95321.0,95320.0,0.0010854]
[1735468207313,0.205662,95321.0,95320.0,0.0020854]
[1735468207514,0.205662,95321.0,95320.0,0.0010854]
[1735468207943,0.01646065,95321.0,95320.0,0.0040854]
[1735468209318,0.01750512,95321.0,95320.0,0.0040854]
[1735468210097,0.01646065,95321.0,95320.0,0.0040854]
[1735468212674,0.01646065,95321.0,95320.0,8.54e-05]
[1735468213433,0.01646065,95321.0,95320.0,0.0020854]
[1735468213607,0.00104447,95321.0,95320.0,0.0020854]
[1735468216922,0.01750516,95321.0,95320.0,0.0020854]
[1735468219184,0.01750516,95321.0,95315.0,0.03782288]
[1735468219378,0.01750516,95321.0,95315.0,0.03794039]
[1735468219577,2.799244,95320.0,95315.0,0.00011751]
[1735468219777,0.00104447,95319.0,95315.0,0.00011751]
[1735468220017,1.49404447,95319.0,95315.0,0.00011751]
[1735468220225,2.609,95318.0,95305.0,0.07200073]
[1735468220405,0.01646069,95321.0,95311.0,5.077e-05]
[1735468220600,2.71004447,95320.0,95311.0,5.077e-05]
[1735468220836,2.164,95319.0,95311.0,5.077e-05]
[1735468221006,0.00104447,95318.0,95311.0,5.077e-05]
[1735468221217,0.00104447,95318.0,95315.0,0.001]
[1735468221416,0.00104447,95320.0,95315.0,0.001]
[1735468221609,2.34704447,95320.0,95315.0,0.001]
[1735468221845,2.635,95319.0,95315.0,0.001]
[1735468222037,0.00104447,95318.0,95315.0,0.001]
[1735468222245,2.42804447,95318.0,95315.0,0.001]
[1735468222359,0.00104447,95318.0,95315.0,0.001]
[1735468222565,0.00104447,95320.0,95315.0,0.001]
[1735468222808,2.50804447,95320.0,95315.0,0.001]
[1735468222983,2.492,95319.0,95315.0,0.001]
[1735468223199,0.00104447,95318.0,95315.0,0.001]
[1735468223622,0.00104447,95320.0,95311.0,5.077e-05]
[1735468223824,2.22,95319.0,95311.0,5.077e-05]
[1735468224031,0.00104447,95318.0,95311.0,5.077e-05]
[1735468224506,0.00104447,95321.0,95315.0,0.001]